[Event "Titled Tuesday Blitz June 13 Late 2023"]
[White "Oro, Faustino"]
[Black "Pinheiro, Iung Alicio de O."]
[WhiteFideId "20000197"]
[BlackFideId "2104350"]
[WhiteElo "1984"]
[BlackElo "2283"]
[Result "1-0"]
[Round "7"]
[TimeControl "180+2"]
[Date "2023.06.13"]
[WhiteClock "0:00:43"]
[BlackClock "0:00:00"]
[Board "58"]

1. e4 {[%clk 0:03:00]}  c5 {[%clk 0:02:55]} 2. Nc3 {[%clk 0:03:01]}  g6 {[%clk 0:02:54]} 3. d4 {[%clk 0:02:57]}  cxd4 {[%clk 0:02:50]} 4. Qxd4 {[%clk 0:02:58]}  Nf6 {[%clk 0:02:34]} 5. Nf3 {[%clk 0:02:58]}  Nc6 {[%clk 0:02:34]} 6. Qa4 {[%clk 0:02:58]}  Qc7 {[%clk 0:02:17]} 7. Bd3 {[%clk 0:02:24]}  Bg7 {[%clk 0:02:14]} 8. O-O {[%clk 0:02:24]}  O-O {[%clk 0:02:12]} 9. Re1 {[%clk 0:02:24]}  d6 {[%clk 0:02:12]} 10. Bf4 {[%clk 0:02:21]}  Ng4 {[%clk 0:01:49]} 11. Nd5 {[%clk 0:02:14]}  Qd8 {[%clk 0:01:49]} 12. c3 {[%clk 0:02:14]}  Nge5 {[%clk 0:01:45]} 13. Nxe5 {[%clk 0:02:13]}  Nxe5 {[%clk 0:01:42]} 14. Bf1 {[%clk 0:02:13]}  e6 {[%clk 0:01:42]} 15. Ne3 {[%clk 0:02:11]}  Bd7 {[%clk 0:01:37]} 16. Qa3 {[%clk 0:02:10]}  Bc6 {[%clk 0:01:34]} 17. Rad1 {[%clk 0:02:00]}  Qf6 {[%clk 0:01:22]} 18. Bg3 {[%clk 0:01:43]}  Bxe4 {[%clk 0:00:49]} 19. Qxd6 {[%clk 0:01:40]}  Bc6 {[%clk 0:00:42]} 20. Qb4 {[%clk 0:01:20]}  Rad8 {[%clk 0:00:35]} 21. Bh4 {[%clk 0:01:09]}  g5 {[%clk 0:00:33]} 22. Bg3 {[%clk 0:01:09]}  Rxd1 {[%clk 0:00:33]} 23. Rxd1 {[%clk 0:01:10]}  Ng6 {[%clk 0:00:17]} 24. Bb5 {[%clk 0:01:05]}  Nf4 {[%clk 0:00:11]} 25. Bxc6 {[%clk 0:01:01]}  bxc6 {[%clk 0:00:12]} 26. Qc4 {[%clk 0:01:00]}  Rc8 {[%clk 0:00:08]} 27. Bxf4 {[%clk 0:00:56]}  gxf4 {[%clk 0:00:08]} 28. Nc2 {[%clk 0:00:57]}  c5 {[%clk 0:00:07]} 29. g3 {[%clk 0:00:49]}  f3 {[%clk 0:00:06]} 30. Ne3 {[%clk 0:00:49]}  h5 {[%clk 0:00:03]} 31. h4 {[%clk 0:00:48]}  Rd8 {[%clk 0:00:03]} 32. Rxd8+ {[%clk 0:00:47]}  Qxd8 {[%clk 0:00:04]} 33. Qxc5 {[%clk 0:00:48]}  Qd2 {[%clk 0:00:04]} 34. Qxh5 {[%clk 0:00:48]}  Qe1+ {[%clk 0:00:02]} 35. Nf1 {[%clk 0:00:48]}  Qe4 {[%clk 0:00:03]} 36. Qg5 {[%clk 0:00:46]}  Kh8 {[%clk 0:00:02]} 37. Qe3 {[%clk 0:00:46]}  Qf5 {[%clk 0:00:00]} 38. Qxa7 {[%clk 0:00:43]} 1-0


[Site "https://www.chess.com"]

[Event "Titled Tuesday Blitz June 13 Late 2023"]
[White "D`Arruda, Ricardo D."]
[Black "Makridis, Dimitrios"]
[WhiteFideId "100692"]
[BlackFideId "25864475"]
[WhiteElo "2529"]
[BlackElo "2277"]
[Result "1-0"]
[Round "7"]
[TimeControl "180+2"]
[Date "2023.06.13"]
[WhiteClock "0:00:22"]
[BlackClock "0:00:00"]
[Board "61"]

1. Nf3 {[%clk 0:02:57]}  Nf6 {[%clk 0:02:40]} 2. d4 {[%clk 0:02:57]}  g6 {[%clk 0:02:41]} 3. Nc3 {[%clk 0:02:56]}  d6 {[%clk 0:02:42]} 4. e4 {[%clk 0:02:56]}  Nbd7 {[%clk 0:02:43]} 5. Bg5 {[%clk 0:02:56]}  h6 {[%clk 0:02:42]} 6. Bh4 {[%clk 0:02:56]}  c5 {[%clk 0:02:41]} 7. dxc5 {[%clk 0:02:50]}  g5 {[%clk 0:02:37]} 8. Bg3 {[%clk 0:02:49]}  Nxc5 {[%clk 0:02:36]} 9. e5 {[%clk 0:02:49]}  Nfe4 {[%clk 0:02:28]} 10. Nxe4 {[%clk 0:02:46]}  Nxe4 {[%clk 0:02:27]} 11. exd6 {[%clk 0:02:46]}  Nxg3 {[%clk 0:02:23]} 12. hxg3 {[%clk 0:02:46]}  Bg7 {[%clk 0:02:24]} 13. Bb5+ {[%clk 0:02:32]}  Bd7 {[%clk 0:02:19]} 14. Bxd7+ {[%clk 0:02:28]}  Qxd7 {[%clk 0:02:19]} 15. O-O {[%clk 0:02:18]}  O-O {[%clk 0:02:05]} 16. dxe7 {[%clk 0:02:15]}  Qxe7 {[%clk 0:02:05]} 17. c3 {[%clk 0:02:15]}  Rad8 {[%clk 0:02:03]} 18. Qc2 {[%clk 0:02:14]}  b6 {[%clk 0:02:02]} 19. Rfe1 {[%clk 0:02:13]}  Qc5 {[%clk 0:02:02]} 20. Rad1 {[%clk 0:02:11]}  f5 {[%clk 0:01:55]} 21. Qb3+ {[%clk 0:02:05]}  Kh8 {[%clk 0:01:54]} 22. Qe6 {[%clk 0:02:04]}  Qb5 {[%clk 0:01:15]} 23. Rxd8 {[%clk 0:01:40]}  Rxd8 {[%clk 0:01:15]} 24. Qe7 {[%clk 0:01:39]}  Qd5 {[%clk 0:00:47]} 25. Ne5 {[%clk 0:01:29]}  Kg8 {[%clk 0:00:41]} 26. g4 {[%clk 0:01:18]}  fxg4 {[%clk 0:00:32]} 27. Nxg4 {[%clk 0:01:13]}  Rd7 {[%clk 0:00:23]} 28. Nf6+ {[%clk 0:01:07]}  Bxf6 {[%clk 0:00:22]} 29. Qxf6 {[%clk 0:01:08]}  Kh7 {[%clk 0:00:11]} 30. g3 {[%clk 0:00:25]}  Qxa2 {[%clk 0:00:03]} 31. Re6 {[%clk 0:00:24]}  Qb1+ {[%clk 0:00:00]} 32. Kg2 {[%clk 0:00:22]} 1-0


[Site "https://www.chess.com"]

[Event "Titled Tuesday Blitz June 13 Late 2023"]
[White "Urbina Perez, Juan Antonio"]
[Black "Martinez Ramirez, Lennis"]
[WhiteFideId "2217368"]
[BlackFideId "3509079"]
[WhiteElo "2197"]
[BlackElo "2410"]
[Result "0-1"]
[Round "7"]
[TimeControl "180+2"]
[Date "2023.06.13"]
[WhiteClock "0:00:01"]
[BlackClock "0:01:01"]
[Board "62"]

1. e4 {[%clk 0:03:00]}  c5 {[%clk 0:02:59]} 2. Nf3 {[%clk 0:03:00]}  Nc6 {[%clk 0:02:59]} 3. Bb5 {[%clk 0:02:59]}  g6 {[%clk 0:02:59]} 4. Bxc6 {[%clk 0:02:59]}  dxc6 {[%clk 0:03:00]} 5. d3 {[%clk 0:02:59]}  Bg7 {[%clk 0:03:01]} 6. h3 {[%clk 0:02:59]}  Nf6 {[%clk 0:02:59]} 7. Nc3 {[%clk 0:03:00]}  O-O {[%clk 0:02:59]} 8. Be3 {[%clk 0:03:00]}  b6 {[%clk 0:02:51]} 9. Qd2 {[%clk 0:03:00]}  Qc7 {[%clk 0:02:43]} 10. O-O {[%clk 0:02:59]}  e5 {[%clk 0:02:43]} 11. Bh6 {[%clk 0:02:58]}  Nh5 {[%clk 0:02:37]} 12. Bxg7 {[%clk 0:02:50]}  Kxg7 {[%clk 0:02:38]} 13. Ne2 {[%clk 0:02:38]}  f6 {[%clk 0:02:37]} 14. Nh2 {[%clk 0:02:36]}  g5 {[%clk 0:02:36]} 15. c3 {[%clk 0:02:30]}  Be6 {[%clk 0:02:35]} 16. d4 {[%clk 0:02:29]}  Rad8 {[%clk 0:02:35]} 17. Qe3 {[%clk 0:02:13]}  Nf4 {[%clk 0:01:58]} 18. Nf3 {[%clk 0:01:30]}  Bc4 {[%clk 0:01:57]} 19. Ng3 {[%clk 0:01:14]}  Bxf1 {[%clk 0:01:54]} 20. Nf5+ {[%clk 0:01:12]}  Kh8 {[%clk 0:01:53]} 21. Rxf1 {[%clk 0:01:12]}  cxd4 {[%clk 0:01:52]} 22. cxd4 {[%clk 0:01:11]}  exd4 {[%clk 0:01:52]} 23. N3xd4 {[%clk 0:01:09]}  Rfe8 {[%clk 0:01:48]} 24. Kh1 {[%clk 0:00:53]}  c5 {[%clk 0:01:44]} 25. Nb5 {[%clk 0:00:52]}  Qc6 {[%clk 0:01:41]} 26. Qb3 {[%clk 0:00:41]}  c4 {[%clk 0:01:25]} 27. Qc3 {[%clk 0:00:36]}  Rd3 {[%clk 0:01:22]} 28. Qb4 {[%clk 0:00:31]}  Qxe4 {[%clk 0:01:21]} 29. f3 {[%clk 0:00:15]}  Qxf5 {[%clk 0:01:20]} 30. Qxc4 {[%clk 0:00:14]}  Qd5 {[%clk 0:01:07]} 31. Qc7 {[%clk 0:00:04]}  Qxb5 {[%clk 0:01:03]} 32. Qf7 {[%clk 0:00:01]}  Rd6 {[%clk 0:01:01]} 0-1


[Site "https://www.chess.com"]

[Event "Titled Tuesday Blitz June 13 Late 2023"]
[White "Aggelis, Nikolaos"]
[Black "Martins, Bruno Andre Leite"]
[WhiteFideId "4213220"]
[BlackFideId "1942255"]
[WhiteElo "2189"]
[BlackElo "2241"]
[Result "1-0"]
[Round "7"]
[TimeControl "180+2"]
[Date "2023.06.13"]
[WhiteClock "0:01:38"]
[BlackClock "0:00:17"]
[Board "63"]

1. c4 {[%clk 0:03:00]}  Nf6 {[%clk 0:02:56]} 2. g3 {[%clk 0:03:00]}  e6 {[%clk 0:02:28]} 3. Bg2 {[%clk 0:02:40]}  d5 {[%clk 0:02:27]} 4. Nf3 {[%clk 0:02:40]}  c5 {[%clk 0:02:20]} 5. d4 {[%clk 0:02:37]}  cxd4 {[%clk 0:02:19]} 6. cxd5 {[%clk 0:02:36]}  Qxd5 {[%clk 0:02:14]} 7. Qxd4 {[%clk 0:02:35]}  Nc6 {[%clk 0:02:11]} 8. Qxd5 {[%clk 0:02:35]}  Nxd5 {[%clk 0:02:12]} 9. O-O {[%clk 0:02:33]}  Be7 {[%clk 0:02:10]} 10. Nc3 {[%clk 0:02:33]}  Nxc3 {[%clk 0:02:10]} 11. bxc3 {[%clk 0:02:34]}  O-O {[%clk 0:02:10]} 12. Nd4 {[%clk 0:02:35]}  Bd7 {[%clk 0:02:05]} 13. Nxc6 {[%clk 0:02:34]}  Bxc6 {[%clk 0:02:06]} 14. Bxc6 {[%clk 0:02:33]}  bxc6 {[%clk 0:02:06]} 15. Be3 {[%clk 0:02:33]}  Rfb8 {[%clk 0:01:49]} 16. Rab1 {[%clk 0:02:31]}  Kf8 {[%clk 0:01:37]} 17. Bxa7 {[%clk 0:02:21]}  Rxb1 {[%clk 0:01:32]} 18. Rxb1 {[%clk 0:02:22]}  Rxa7 {[%clk 0:01:28]} 19. Rb8+ {[%clk 0:02:22]}  Bd8 {[%clk 0:01:29]} 20. Rxd8+ {[%clk 0:02:20]}  Ke7 {[%clk 0:01:29]} 21. Rd2 {[%clk 0:02:17]}  Ra3 {[%clk 0:01:27]} 22. Rc2 {[%clk 0:02:14]}  Kd6 {[%clk 0:01:27]} 23. Kf1 {[%clk 0:02:03]}  Kc5 {[%clk 0:01:26]} 24. Rb2 {[%clk 0:02:03]}  Kc4 {[%clk 0:01:01]} 25. Rb7 {[%clk 0:02:01]}  c5 {[%clk 0:00:59]} 26. Rxf7 {[%clk 0:02:01]}  Kxc3 {[%clk 0:00:59]} 27. Rxg7 {[%clk 0:02:01]}  c4 {[%clk 0:00:59]} 28. Rxh7 {[%clk 0:02:01]}  Kd2 {[%clk 0:00:48]} 29. Rd7+ {[%clk 0:01:57]}  Kc1 {[%clk 0:00:46]} 30. h4 {[%clk 0:01:53]}  c3 {[%clk 0:00:46]} 31. h5 {[%clk 0:01:52]}  c2 {[%clk 0:00:43]} 32. Ke1 {[%clk 0:01:41]}  Kb2 {[%clk 0:00:40]} 33. Rb7+ {[%clk 0:01:40]}  Kc3 {[%clk 0:00:30]} 34. Rc7+ {[%clk 0:01:40]}  Kb2 {[%clk 0:00:23]} 35. Kd2 {[%clk 0:01:40]}  Ra5 {[%clk 0:00:19]} 36. Rxc2+ {[%clk 0:01:39]}  Kb1 {[%clk 0:00:20]} 37. Rc1+ {[%clk 0:01:37]}  Kb2 {[%clk 0:00:17]} 38. Rh1 {[%clk 0:01:38]} 1-0


[Site "https://www.chess.com"]

[Event "Titled Tuesday Blitz June 13 Late 2023"]
[White "Korchmar, Vasiliy"]
[Black "GAO"]
[WhiteFideId "24131750"]
[WhiteElo "2370"]
[BlackElo "2394"]
[Result "1-0"]
[Round "7"]
[TimeControl "180+2"]
[Date "2023.06.13"]
[WhiteClock "0:01:54"]
[BlackClock "0:00:34"]
[Board "66"]

1. e4 {[%clk 0:03:00]}  c5 {[%clk 0:02:59]} 2. Nf3 {[%clk 0:02:59]}  d6 {[%clk 0:02:59]} 3. g3 {[%clk 0:03:00]}  g6 {[%clk 0:02:58]} 4. Bg2 {[%clk 0:03:00]}  Bg7 {[%clk 0:02:59]} 5. O-O {[%clk 0:03:01]}  Nf6 {[%clk 0:02:59]} 6. Re1 {[%clk 0:03:01]}  O-O {[%clk 0:02:59]} 7. c3 {[%clk 0:03:02]}  Nc6 {[%clk 0:02:57]} 8. d4 {[%clk 0:03:02]}  cxd4 {[%clk 0:02:57]} 9. cxd4 {[%clk 0:03:03]}  Bg4 {[%clk 0:02:58]} 10. h3 {[%clk 0:02:59]}  Bxf3 {[%clk 0:02:56]} 11. Bxf3 {[%clk 0:03:00]}  e5 {[%clk 0:02:38]} 12. d5 {[%clk 0:02:59]}  Nd4 {[%clk 0:02:38]} 13. Bg2 {[%clk 0:03:00]}  Rc8 {[%clk 0:02:37]} 14. Nc3 {[%clk 0:02:59]}  Nd7 {[%clk 0:02:37]} 15. Be3 {[%clk 0:02:59]}  a6 {[%clk 0:02:32]} 16. Rc1 {[%clk 0:02:59]}  b5 {[%clk 0:02:31]} 17. a4 {[%clk 0:02:59]}  b4 {[%clk 0:02:30]} 18. Ne2 {[%clk 0:03:00]}  Nxe2+ {[%clk 0:02:25]} 19. Qxe2 {[%clk 0:03:01]}  Qa5 {[%clk 0:02:20]} 20. Rc6 {[%clk 0:02:59]}  Rxc6 {[%clk 0:02:13]} 21. dxc6 {[%clk 0:03:00]}  Nc5 {[%clk 0:02:12]} 22. Rd1 {[%clk 0:02:59]}  Qxa4 {[%clk 0:01:43]} 23. Rxd6 {[%clk 0:02:58]}  Ne6 {[%clk 0:01:43]} 24. Qc4 {[%clk 0:02:57]}  Rc8 {[%clk 0:01:37]} 25. h4 {[%clk 0:02:56]}  Qb5 {[%clk 0:01:09]} 26. Qd5 {[%clk 0:02:54]}  Bf8 {[%clk 0:01:04]} 27. Rxe6 {[%clk 0:02:07]}  Qxd5 {[%clk 0:01:04]} 28. exd5 {[%clk 0:02:08]}  fxe6 {[%clk 0:01:04]} 29. Bh3 {[%clk 0:02:08]}  Kg7 {[%clk 0:00:54]} 30. Bxe6 {[%clk 0:02:08]}  Rc7 {[%clk 0:00:43]} 31. Bb6 {[%clk 0:02:09]}  Bd6 {[%clk 0:00:44]} 32. Kf1 {[%clk 0:02:09]}  Kf6 {[%clk 0:00:43]} 33. Ke2 {[%clk 0:02:09]}  Re7 {[%clk 0:00:41]} 34. Bh3 {[%clk 0:02:04]}  e4 {[%clk 0:00:39]} 35. Ke3 {[%clk 0:01:58]}  Ke5 {[%clk 0:00:39]} 36. Be6 {[%clk 0:01:55]}  a5 {[%clk 0:00:34]} 37. Bd4# {[%clk 0:01:54]} 1-0


[Site "https://www.chess.com"]

[Event "Titled Tuesday Blitz June 13 Late 2023"]
[White "Matsuura, Frederico"]
[Black "Chernobay, Artem"]
[WhiteFideId "2107848"]
[BlackFideId "4167406"]
[WhiteElo "2302"]
[BlackElo "2474"]
[Result "1/2-1/2"]
[Round "7"]
[TimeControl "180+2"]
[Date "2023.06.13"]
[WhiteClock "0:00:00"]
[BlackClock "0:00:05"]
[Board "67"]

1. d4 {[%clk 0:03:00]}  Nf6 {[%clk 0:02:57]} 2. Bg5 {[%clk 0:03:00]}  Ne4 {[%clk 0:02:56]} 3. Bh4 {[%clk 0:03:00]}  d5 {[%clk 0:02:53]} 4. f3 {[%clk 0:03:01]}  Nf6 {[%clk 0:02:46]} 5. Nc3 {[%clk 0:03:00]}  c5 {[%clk 0:02:33]} 6. e4 {[%clk 0:02:28]}  cxd4 {[%clk 0:02:19]} 7. Qxd4 {[%clk 0:02:22]}  Nc6 {[%clk 0:02:19]} 8. Bb5 {[%clk 0:02:20]}  dxe4 {[%clk 0:02:12]} 9. Qxd8+ {[%clk 0:02:17]}  Kxd8 {[%clk 0:02:12]} 10. O-O-O+ {[%clk 0:02:06]}  Bd7 {[%clk 0:02:11]} 11. fxe4 {[%clk 0:02:01]}  Kc8 {[%clk 0:02:08]} 12. Nf3 {[%clk 0:01:54]}  h6 {[%clk 0:01:58]} 13. h3 {[%clk 0:01:33]}  g5 {[%clk 0:01:53]} 14. Bf2 {[%clk 0:01:32]}  Bg7 {[%clk 0:01:52]} 15. Rhe1 {[%clk 0:01:18]}  a6 {[%clk 0:01:49]} 16. Bc4 {[%clk 0:01:14]}  e6 {[%clk 0:01:48]} 17. Bb6 {[%clk 0:01:11]}  Be8 {[%clk 0:01:38]} 18. Na4 {[%clk 0:01:05]}  Nd7 {[%clk 0:01:38]} 19. Rd2 {[%clk 0:00:57]}  Bf6 {[%clk 0:01:19]} 20. Bb3 {[%clk 0:00:51]}  h5 {[%clk 0:01:15]} 21. Kb1 {[%clk 0:00:23]}  g4 {[%clk 0:01:15]} 22. hxg4 {[%clk 0:00:23]}  hxg4 {[%clk 0:01:16]} 23. Nd4 {[%clk 0:00:23]}  Nxd4 {[%clk 0:01:07]} 24. Bxd4 {[%clk 0:00:23]}  Bxd4 {[%clk 0:00:59]} 25. Rxd4 {[%clk 0:00:22]}  b5 {[%clk 0:01:00]} 26. Nc3 {[%clk 0:00:21]}  Kc7 {[%clk 0:00:52]} 27. a4 {[%clk 0:00:20]}  bxa4 {[%clk 0:00:50]} 28. Nxa4 {[%clk 0:00:19]}  Ne5 {[%clk 0:00:47]} 29. Nc5 {[%clk 0:00:17]}  Bc6 {[%clk 0:00:46]} 30. Ba4 {[%clk 0:00:16]}  a5 {[%clk 0:00:38]} 31. Bxc6 {[%clk 0:00:15]}  Kxc6 {[%clk 0:00:38]} 32. Nd3 {[%clk 0:00:12]}  Nd7 {[%clk 0:00:33]} 33. Rd1 {[%clk 0:00:10]}  Ra7 {[%clk 0:00:30]} 34. b3 {[%clk 0:00:09]}  Rh5 {[%clk 0:00:27]} 35. Rd2 {[%clk 0:00:09]}  Rb5 {[%clk 0:00:23]} 36. Ka2 {[%clk 0:00:08]}  Nb6 {[%clk 0:00:19]} 37. Rf2 {[%clk 0:00:04]}  a4 {[%clk 0:00:18]} 38. b4 {[%clk 0:00:04]}  Rg5 {[%clk 0:00:15]} 39. c4 {[%clk 0:00:04]}  Rd7 {[%clk 0:00:12]} 40. b5+ {[%clk 0:00:04]}  Kc7 {[%clk 0:00:11]} 41. Rxd7+ {[%clk 0:00:04]}  Kxd7 {[%clk 0:00:12]} 42. Rxf7+ {[%clk 0:00:04]}  Ke8 {[%clk 0:00:12]} 43. Rb7 {[%clk 0:00:04]}  Nxc4 {[%clk 0:00:11]} 44. Rc7 {[%clk 0:00:03]}  Nd2 {[%clk 0:00:11]} 45. b6 {[%clk 0:00:03]}  Rb5 {[%clk 0:00:08]} 46. b7 {[%clk 0:00:02]}  Nxe4 {[%clk 0:00:08]} 47. Rc8+ {[%clk 0:00:03]}  Kd7 {[%clk 0:00:08]} 48. b8=Q {[%clk 0:00:03]}  Rxb8 {[%clk 0:00:09]} 49. Rxb8 {[%clk 0:00:03]}  Kc6 {[%clk 0:00:10]} 50. Rb4 {[%clk 0:00:04]}  Kd5 {[%clk 0:00:09]} 51. Nf4+ {[%clk 0:00:03]}  Ke5 {[%clk 0:00:09]} 52. Nxe6 {[%clk 0:00:04]}  Nc3+ {[%clk 0:00:08]} 53. Kb2 {[%clk 0:00:03]}  Nd5 {[%clk 0:00:09]} 54. Rxg4 {[%clk 0:00:02]}  Kxe6 {[%clk 0:00:09]} 55. Rxa4 {[%clk 0:00:02]}  Ne3 {[%clk 0:00:08]} 56. g3 {[%clk 0:00:00]}  Nf5 {[%clk 0:00:05]} 1/2-1/2


[Site "https://www.chess.com"]

[Event "Titled Tuesday Blitz June 13 Late 2023"]
[White "Kavutskiy, Konstantin"]
[Black "Torres Dominguez, David"]
[WhiteFideId "2026384"]
[BlackFideId "2220857"]
[WhiteElo "2323"]
[BlackElo "1999"]
[Result "1-0"]
[Round "7"]
[TimeControl "180+2"]
[Date "2023.06.13"]
[WhiteClock "0:00:42"]
[BlackClock "0:00:00"]
[Board "68"]

1. e4 {[%clk 0:03:00]}  e5 {[%clk 0:02:59]} 2. Nf3 {[%clk 0:03:00]}  Nc6 {[%clk 0:02:57]} 3. Bc4 {[%clk 0:03:00]}  Bc5 {[%clk 0:02:56]} 4. c3 {[%clk 0:02:59]}  Nf6 {[%clk 0:02:56]} 5. d3 {[%clk 0:02:59]}  d6 {[%clk 0:02:55]} 6. h3 {[%clk 0:02:58]}  a6 {[%clk 0:02:55]} 7. Bb3 {[%clk 0:02:56]}  Ba7 {[%clk 0:02:55]} 8. Nbd2 {[%clk 0:02:56]}  h6 {[%clk 0:02:53]} 9. Qe2 {[%clk 0:02:51]}  Be6 {[%clk 0:02:44]} 10. Bc2 {[%clk 0:02:51]}  Ne7 {[%clk 0:02:26]} 11. Nf1 {[%clk 0:02:47]}  Ng6 {[%clk 0:02:26]} 12. Ng3 {[%clk 0:02:45]}  Qd7 {[%clk 0:02:25]} 13. Nh4 {[%clk 0:02:41]}  Nxh4 {[%clk 0:02:19]} 14. Be3 {[%clk 0:02:21]}  Ng6 {[%clk 0:02:17]} 15. O-O-O {[%clk 0:02:13]}  Nf4 {[%clk 0:02:13]} 16. Qf3 {[%clk 0:02:11]}  g5 {[%clk 0:01:59]} 17. Nf5 {[%clk 0:02:04]}  Bxf5 {[%clk 0:01:56]} 18. exf5 {[%clk 0:02:05]}  Bxe3+ {[%clk 0:01:40]} 19. fxe3 {[%clk 0:02:04]}  N4d5 {[%clk 0:01:39]} 20. c4 {[%clk 0:01:57]}  Nb6 {[%clk 0:01:15]} 21. Qxb7 {[%clk 0:01:56]}  O-O {[%clk 0:01:08]} 22. Qf3 {[%clk 0:01:51]}  Rab8 {[%clk 0:01:01]} 23. g4 {[%clk 0:01:49]}  Na4 {[%clk 0:00:59]} 24. Bb3 {[%clk 0:01:32]}  Nc5 {[%clk 0:00:50]} 25. Bc2 {[%clk 0:01:32]}  Na4 {[%clk 0:00:45]} 26. h4 {[%clk 0:01:18]}  Rxb2 {[%clk 0:00:37]} 27. hxg5 {[%clk 0:01:17]}  Rxc2+ {[%clk 0:00:30]} 28. Kxc2 {[%clk 0:01:17]}  Nc5 {[%clk 0:00:07]} 29. gxf6 {[%clk 0:00:55]}  Qa4+ {[%clk 0:00:07]} 30. Kd2 {[%clk 0:00:55]}  Qxa2+ {[%clk 0:00:03]} 31. Ke1 {[%clk 0:00:55]}  Qc2 {[%clk 0:00:00]} 32. Qe2 {[%clk 0:00:42]} 1-0


[Site "https://www.chess.com"]

[Event "Titled Tuesday Blitz June 13 Late 2023"]
[White "Yurasova, Daria"]
[Black "Rosen, Eric"]
[WhiteFideId "34146919"]
[BlackFideId "2032562"]
[WhiteElo "2109"]
[BlackElo "2331"]
[Result "1-0"]
[Round "7"]
[TimeControl "180+2"]
[Date "2023.06.13"]
[WhiteClock "0:00:57"]
[BlackClock "0:00:00"]
[Board "72"]

1. d4 {[%clk 0:03:00]}  d5 {[%clk 0:02:59]} 2. Nf3 {[%clk 0:03:00]}  Nf6 {[%clk 0:02:59]} 3. c4 {[%clk 0:02:58]}  e6 {[%clk 0:02:59]} 4. g3 {[%clk 0:02:56]}  dxc4 {[%clk 0:02:58]} 5. Bg2 {[%clk 0:02:55]}  Bb4+ {[%clk 0:02:58]} 6. Bd2 {[%clk 0:02:55]}  c5 {[%clk 0:02:58]} 7. Bxb4 {[%clk 0:02:53]}  cxb4 {[%clk 0:02:58]} 8. O-O {[%clk 0:02:54]}  O-O {[%clk 0:02:58]} 9. Ne5 {[%clk 0:02:53]}  Nc6 {[%clk 0:02:58]} 10. Nxc6 {[%clk 0:02:51]}  bxc6 {[%clk 0:02:58]} 11. Bxc6 {[%clk 0:02:52]}  Rb8 {[%clk 0:02:57]} 12. Bg2 {[%clk 0:02:50]}  a5 {[%clk 0:02:52]} 13. Nd2 {[%clk 0:02:50]}  Ba6 {[%clk 0:02:51]} 14. Nf3 {[%clk 0:02:46]}  Qd6 {[%clk 0:02:30]} 15. Rc1 {[%clk 0:02:42]}  Rfc8 {[%clk 0:02:30]} 16. Ne5 {[%clk 0:02:41]}  Nd7 {[%clk 0:02:27]} 17. Nxd7 {[%clk 0:02:14]}  Qc7 {[%clk 0:02:27]} 18. Nxb8 {[%clk 0:02:13]}  Rxb8 {[%clk 0:02:17]} 19. Qc2 {[%clk 0:02:08]}  Bb5 {[%clk 0:02:07]} 20. Rfd1 {[%clk 0:02:01]}  Qd6 {[%clk 0:01:43]} 21. e4 {[%clk 0:01:57]}  h5 {[%clk 0:01:33]} 22. h4 {[%clk 0:01:51]}  a4 {[%clk 0:01:31]} 23. Bf1 {[%clk 0:01:45]}  Rc8 {[%clk 0:01:28]} 24. Qd2 {[%clk 0:01:40]}  Ba6 {[%clk 0:01:13]} 25. Qf4 {[%clk 0:01:38]}  Qb6 {[%clk 0:01:08]} 26. d5 {[%clk 0:01:29]}  c3 {[%clk 0:00:40]} 27. bxc3 {[%clk 0:01:28]}  Bxf1 {[%clk 0:00:37]} 28. Rxf1 {[%clk 0:01:27]}  bxc3 {[%clk 0:00:35]} 29. Qe3 {[%clk 0:01:17]}  Qb4 {[%clk 0:00:30]} 30. Rc2 {[%clk 0:01:12]}  Rc4 {[%clk 0:00:26]} 31. dxe6 {[%clk 0:01:09]}  fxe6 {[%clk 0:00:26]} 32. Rfc1 {[%clk 0:01:06]}  Rxe4 {[%clk 0:00:17]} 33. Qxc3 {[%clk 0:01:04]}  Qb6 {[%clk 0:00:14]} 34. Qc5 {[%clk 0:01:02]}  Qb7 {[%clk 0:00:02]} 35. Qxh5 {[%clk 0:01:00]}  Kf8 {[%clk 0:00:01]} 36. Qf3+ {[%clk 0:00:58]}  Ke7 {[%clk 0:00:00]} 37. Rc7+ {[%clk 0:00:57]} 1-0


[Site "https://www.chess.com"]